fUST/lending_fUST_20240924
["ID","MTS","AMOUNT","RATE_DAILY","PERIOD"]
[339035860,1727159443460,-500.0,0.00032328,30]
[339035861,1727159443471,-410.9866915,0.00032328,30]
[339035862,1727159443480,-2000.0,0.000325,2]
[339035863,1727159443490,-320.0,0.000325,2]
[339035864,1727159443499,-153.0,0.00032528,2]
[339035865,1727159443508,-153.0,0.00032528,2]
[339035866,1727159443518,-153.0,0.00032528,2]
[339035867,1727159443527,-153.0,0.00032528,2]
[339035868,1727159443537,-153.0,0.00032528,2]
[339035869,1727159443546,-153.0,0.00032528,2]
[339035870,1727159443555,-153.0,0.00032528,2]
[339035871,1727159443565,-151.0,0.0003263,6]
[339035872,1727159443574,-19289.99696811,0.00032678,15]
[339035873,1727159443584,-219346.37715,0.00032678,2]
[339035874,1727159443593,-415.0327415,0.00032679,2]
[339035875,1727159443602,-208.977489,0.00032679,2]
[339035876,1727159443612,-209.0432937,0.00032679,2]
[339035877,1727159443621,-208.977489,0.00032679,2]
[339035878,1727159443631,-418.0865874,0.00032679,2]
[339035879,1727159443640,-209.0432937,0.00032679,2]
[339035880,1727159443649,-209.0432937,0.00032679,2]
[339035881,1727159443659,-209.0432937,0.00032679,2]
[339035882,1727159443671,-208.977489,0.00032681,2]
[339035883,1727159443680,-163.2140513,0.00032681,2]
[339035884,1727159443689,-2142.25866275,0.0003269,4]
[339035885,1727159443698,-211.51879184,0.0003269,4]
[339035886,1727159443707,-208.977489,0.000327,2]
[339035887,1727159443718,-1000.0,0.00032749,2]
[339035888,1727159443727,-1000.0,0.00032764,2]
[339035889,1727159443736,-1656.16304643,0.00032766,2]
[339035890,1727159443746,-39143.7502783,0.00032776,120]
[339035891,1727159443756,-209.0432937,0.000328,2]
[339035892,1727159443765,-3000.0,0.000328,13]
[339035893,1727159443775,-150.112233,0.000328,6]
[339035894,1727159443784,-5981.747013,0.0003281,13]
[339035895,1727159443794,-598.17573823,0.00032835,2]
[339035896,1727159443803,-1000.0,0.00032837,2]
[339035897,1727159443812,-6426.77598825,0.00032854,4]
[339035898,1727159443822,-634.55637552,0.00032854,5]
[339035899,1727159443831,-25707.103953,0.00032856,4]
[339035900,1727159443841,-2538.22550208,0.00032856,5]
[339035901,1727159443850,-2142.25866275,0.00032864,4]
[339035902,1727159443859,-211.51879184,0.00032864,5]
[339035903,1727159443869,-4284.5173255,0.00032866,4]
[339035904,1727159443878,-423.03758368,0.00032866,5]
[339035905,1727159443896,-1000.0,0.00032866,2]
[339035906,1727159443908,-151.0,0.00032866,7]
[339035907,1727159443918,-151.0,0.00032866,7]
[339035908,1727159443927,-151.0,0.00032866,7]
[339035909,1727159443938,-218.739617,0.00032866,7]
[339035910,1727159443949,-218.739617,0.00032866,7]
[339035911,1727159443959,-218.739617,0.00032866,7]
[339035912,1727159443969,-218.739617,0.00032866,7]
[339035913,1727159443979,-309.761292,0.00032866,7]
[339035914,1727159443989,-309.761292,0.00032866,7]
[339035915,1727159443999,-309.761292,0.00032866,7]
[339035916,1727159444008,-309.761292,0.00032866,7]
[339035917,1727159444018,-151.0,0.00032866,7]
[339035918,1727159444028,-151.0,0.00032866,7]
[339035919,1727159444037,-218.522196,0.00032866,7]
[339035920,1727159444047,-151.0,0.00032866,7]
[339035921,1727159444057,-151.0,0.00032866,7]
[339035922,1727159444066,-151.0,0.00032866,7]
[339035923,1727159444076,-151.0,0.00032866,7]
[339035924,1727159444086,-151.0,0.00032866,7]
[339035925,1727159444095,-151.0,0.00032866,7]
[339035926,1727159444105,-274.59936,0.00032866,7]
[339035927,1727159444114,-751.847245,0.00032866,7]
[339035928,1727159444124,-751.847245,0.00032866,7]
[339035929,1727159444134,-751.847245,0.00032866,7]
[339035930,1727159444143,-751.847245,0.00032866,7]
[339035931,1727159444153,-151.0,0.00032866,7]
[339035932,1727159444163,-151.0,0.00032866,7]
[339035933,1727159444173,-151.0,0.00032866,7]
[339035934,1727159444182,-273.132708,0.00032866,7]
[339035935,1727159444192,-151.0,0.00032866,7]
[339035936,1727159444202,-151.0,0.00032866,7]
[339035937,1727159444212,-151.0,0.00032866,7]
[339035938,1727159444222,-151.0,0.00032866,7]
[339035939,1727159444232,-151.0,0.00032866,7]
[339035940,1727159444243,-182.027181,0.00032866,7]
[339035941,1727159444253,-184.792268,0.00032866,7]
[339035942,1727159444263,-184.792268,0.00032866,7]
[339035943,1727159444272,-184.792268,0.00032866,7]
[339035944,1727159444282,-184.792268,0.00032866,7]
[339035945,1727159444292,-667.818887,0.00032866,7]
[339035946,1727159444302,-667.818887,0.00032866,7]
[339035947,1727159444311,-667.818887,0.00032866,7]
[339035948,1727159444321,-667.818887,0.00032866,7]
[339035949,1727159444331,-151.0,0.00032866,7]
[339035950,1727159444340,-151.0,0.00032866,7]
[339035951,1727159444349,-151.0,0.00032866,7]
[339035952,1727159444359,-155.700668,0.00032866,7]
[339035953,1727159444368,-151.0,0.00032866,7]
[339035954,1727159444378,-263.45865,0.00032866,7]
[339035955,1727159444387,-151.0,0.00032866,7]
[339035956,1727159444397,-151.0,0.00032866,7]
[339035957,1727159444406,-151.0,0.00032866,7]
[339035958,1727159444416,-151.0,0.00032866,7]
[339035959,1727159444427,-151.0,0.00032866,7]
[339035960,1727159444438,-151.0,0.00032866,7]
[339035961,1727159444458,-151.0,0.00032866,7]
[339035962,1727159444468,-151.0,0.00032866,7]
[339035963,1727159444478,-151.0,0.00032866,7]
[339035964,1727159444488,-151.0,0.00032866,7]
[339035965,1727159444498,-151.0,0.00032866,7]
[339035966,1727159444508,-151.0,0.00032866,7]
[339035967,1727159444518,-500.0,0.00032873,5]
[339035968,1727159444528,-480.4868524,0.00032873,5]
[339035969,1727159444537,-500.0,0.00032873,5]
[339035970,1727159444547,-500.0,0.00032873,5]
[339035971,1727159444557,-300.63017452,0.00032873,5]
[339035972,1727159444567,-503.52218049,0.00032873,5]
[339035973,1727159444577,-493.97043111,0.00032873,5]
[339035974,1727159444587,-410.25769515,0.00032874,2]
[339035975,1727159444597,-12074.858009,0.00032874,2]
[339035976,1727159444608,-814.78752861,0.00032876,14]
[339035977,1727159444618,-501.62011944,0.00032876,14]
[339035978,1727159444628,-502.08344587,0.00032876,14]
[339035979,1727159444637,-500.0,0.00032876,14]
[339035980,1727159444647,-151.0,0.00032876,7]
[339035981,1727159444656,-151.0,0.00032876,7]
[339035982,1727159444667,-152.397761,0.00032876,7]
[339035983,1727159444677,-151.0,0.00032876,7]
[339035984,1727159444692,-151.0,0.00032876,7]
[339035985,1727159444702,-235.277402,0.00032876,7]
[339035986,1727159444712,-500.0,0.00032876,14]
[339035987,1727159444721,-500.0,0.00032876,14]
[339035988,1727159444731,-501.21441814,0.00032876,14]
[339035989,1727159444741,-579.26266504,0.00032876,14]
[339035990,1727159444750,-500.0,0.00032876,14]
[339035991,1727159444760,-151.0,0.00032876,7]
[339035992,1727159444770,-500.0,0.00032876,14]
[339035993,1727159444780,-151.0,0.00032876,7]
[339035994,1727159444789,-150.0,0.00032876,14]
[339035995,1727159444799,-500.0,0.00032876,14]
[339035996,1727159444808,-500.0,0.00032876,14]
[339035997,1727159444817,-502.17673918,0.00032876,14]
[339035998,1727159444827,-503.24770722,0.00032876,14]
[339035999,1727159444837,-500.0,0.00032876,14]
[339036000,1727159444847,-500.0,0.00032876,14]
[339036001,1727159444856,-500.0,0.00032876,14]
[339036002,1727159444866,-517.80802409,0.00032876,14]
[339036003,1727159444876,-500.0,0.00032876,14]
[339036004,1727159444885,-648.22512251,0.00032876,14]
[339036005,1727159444895,-500.0,0.00032876,14]
[339036006,1727159444904,-500.0,0.00032876,14]
[339036007,1727159444914,-500.0,0.00032876,14]
[339036008,1727159444923,-508.85792584,0.00032876,14]
[339036009,1727159444933,-500.0,0.00032876,14]
[339036010,1727159444942,-518.57147527,0.00032876,14]
[339036011,1727159444951,-500.0,0.00032876,14]
[339036012,1727159444962,-500.0,0.00032876,14]
[339036013,1727159444971,-506.15099202,0.00032876,14]
[339036014,1727159444981,-151.0,0.00032876,7]
[339036015,1727159444990,-151.0,0.00032876,7]
[339036016,1727159445000,-151.0,0.00032876,7]
[339036017,1727159445009,-151.0,0.00032876,7]
[339036018,1727159445019,-151.0,0.00032876,7]
[339036019,1727159445028,-151.0,0.00032876,7]
[339036020,1727159445038,-502.14245299,0.00032876,14]
[339036021,1727159445047,-506.95419433,0.00032876,14]
[339036022,1727159445056,-500.0,0.00032876,14]
[339036023,1727159445065,-512.21524027,0.00032876,14]
[339036024,1727159445075,-500.0,0.00032876,14]
[339036025,1727159445084,-500.0,0.00032876,14]
[339036026,1727159445093,-500.0,0.00032876,14]
[339036027,1727159445102,-500.0,0.00032876,14]
[339036028,1727159445111,-501.55305559,0.00032876,14]
[339036029,1727159445120,-502.50073144,0.00032876,14]
[339036030,1727159445129,-500.0,0.00032876,14]
[339036031,1727159445138,-503.75858524,0.00032876,14]
[339036032,1727159445147,-500.0,0.00032876,14]
[339036033,1727159445156,-1016.6437056,0.00032876,30]
[339036034,1727159445166,-500.0,0.00032876,14]
[339036035,1727159445174,-502.81562629,0.00032876,14]
[339036036,1727159445183,-501.76896715,0.00032876,14]
[339036037,1727159445192,-503.5713083,0.00032876,14]
[339036038,1727159445202,-507.07361508,0.00032876,14]
[339036039,1727159445210,-588.71,0.00032876,14]
[339036041,1727159445220,-503.68693388,0.00032876,14]
[339036042,1727159445230,-503.70421411,0.00032876,14]
[339036043,1727159445239,-500.0,0.00032876,14]
[339036044,1727159445248,-500.0,0.00032876,14]
[339036045,1727159445257,-515.520653,0.00032876,14]
[339036046,1727159445267,-503.45105981,0.00032876,14]
[339036047,1727159445276,-253.08614534,0.00032876,14]
[339036048,1727159445285,-500.0,0.00032876,14]
[339036049,1727159445295,-503.55265923,0.00032876,14]
[339036050,1727159445304,-500.0,0.00032876,14]
[339036051,1727159445313,-500.0,0.00032876,14]
[339036052,1727159445322,-500.0,0.00032876,14]
[339036053,1727159445332,-500.0,0.00032876,14]
[339036054,1727159445341,-504.35766031,0.00032876,14]
[339036055,1727159445351,-507.00311016,0.00032876,14]
[339036056,1727159445361,-500.0,0.00032876,14]
[339036057,1727159445370,-500.87524974,0.00032876,14]
[339036058,1727159445379,-504.61449586,0.00032876,14]
[339036059,1727159445389,-519.27771713,0.00032876,14]
[339036060,1727159445398,-500.0,0.00032876,14]
[339036061,1727159445407,-617.96910257,0.00032876,14]
[339036062,1727159445416,-358.95221924,0.00032876,14]
[339036063,1727159445426,-503.20921937,0.00032876,14]
[339036064,1727159445436,-501.65657335,0.00032876,14]
[339036065,1727159445445,-151.0,0.00032876,7]
[339036066,1727159445454,-151.0,0.00032876,7]
[339036067,1727159445464,-510.65024025,0.00032876,14]
[339036068,1727159445474,-151.0,0.00032876,7]
[339036069,1727159445483,-506.21072728,0.00032876,14]
[339036070,1727159445492,-151.0,0.00032876,7]
[339036072,1727159445501,-151.0,0.00032876,7]
[339036073,1727159445510,-500.0,0.00032876,14]
[339036075,1727159445520,-151.0,0.00032876,7]
[339036077,1727159445529,-503.29607355,0.00032876,14]
[339036078,1727159445538,-501.38046294,0.00032876,14]
[339036079,1727159445548,-500.0,0.00032876,14]
[339036080,1727159445557,-500.0,0.00032876,14]
[339036081,1727159445566,-500.0,0.00032876,14]
[339036082,1727159445575,-500.0,0.00032876,14]
[339036083,1727159445585,-500.0,0.00032876,14]
[339036084,1727159445594,-212.78754494,0.00032876,14]
[339036085,1727159445604,-500.0,0.00032876,14]
[339036086,1727159445614,-500.78498312,0.00032876,7]
[339036087,1727159445623,-500.0,0.00032876,14]
[339036088,1727159445633,-500.0,0.00032876,14]
[339036089,1727159445643,-500.0,0.00032876,14]
[339036090,1727159445652,-500.0,0.00032876,14]
[339036091,1727159445662,-500.73295212,0.00032876,14]
[339036092,1727159445768,-500.0,0.00032876,14]
[339036093,1727159445779,-500.0,0.00032876,14]
[339036094,1727159445788,-503.52359944,0.00032876,14]
[339036095,1727159445798,-500.0,0.00032876,14]
[339036096,1727159445808,-500.0,0.00032876,14]
[339036097,1727159445817,-201.74,0.00032876,7]
[339036098,1727159445826,-511.85707416,0.00032876,14]
[339036099,1727159445836,-504.63738494,0.00032876,14]
[339036100,1727159445845,-506.20514302,0.00032876,14]
[339036101,1727159445855,-500.0,0.00032876,14]
[339036102,1727159445864,-501.50242712,0.00032876,14]
[339036103,1727159445874,-500.0,0.00032876,14]
[339036104,1727159445883,-503.66364038,0.00032876,14]
[339036105,1727159445892,-500.0,0.00032876,14]
[339036106,1727159445901,-504.32598044,0.00032876,14]
[339036107,1727159445911,-500.0,0.00032876,14]
[339036108,1727159445920,-500.0,0.00032876,14]
[339036109,1727159445930,-500.0,0.00032876,14]
[339036110,1727159445940,-343.69025155,0.00032876,14]
[339036111,1727159445949,-500.0,0.00032876,14]
[339036112,1727159445959,-500.88090704,0.00032876,14]
[339036113,1727159445968,-519.48,0.00032876,14]
[339036114,1727159445977,-500.0,0.00032876,14]
[339036115,1727159445986,-501.95235144,0.00032876,14]
[339036116,1727159445995,-500.0,0.00032876,14]
[339036117,1727159446005,-500.0,0.00032876,2]
[339036118,1727159446014,-500.0,0.00032876,14]
[339036119,1727159446023,-500.0,0.00032876,14]
[339036120,1727159446033,-502.92030586,0.00032876,14]
[339036121,1727159446042,-506.60856354,0.00032876,14]
[339036122,1727159446051,-500.0,0.00032876,2]
[339036123,1727159446060,-500.0,0.00032876,14]
[339036124,1727159446069,-505.19107298,0.00032876,14]
[339036125,1727159446079,-500.0,0.00032876,14]
[339036126,1727159446088,-500.0,0.00032876,14]
[339036127,1727159446097,-501.42372589,0.00032876,14]
[339036128,1727159446106,-500.0,0.00032876,14]
[339036129,1727159446116,-500.0,0.00032876,14]
[339036130,1727159446125,-500.0,0.00032876,14]
[339036131,1727159446135,-503.16882691,0.00032876,14]
[339036132,1727159446144,-500.0,0.00032876,14]
[339036133,1727159446153,-502.27358326,0.00032876,14]
[339036134,1727159446162,-501.70966548,0.00032876,14]
[339036135,1727159446172,-500.0,0.00032876,14]
[339036136,1727159446181,-500.0,0.00032876,14]
[339036137,1727159446190,-500.0,0.00032876,14]
[339036138,1727159446200,-504.00757494,0.00032876,14]
[339036139,1727159446209,-505.74076845,0.00032876,14]
[339036140,1727159446218,-500.0,0.00032876,14]
[339036141,1727159446227,-510.69832793,0.00032876,14]
[339036142,1727159446236,-502.73520846,0.00032876,14]
[339036143,1727159446246,-500.0,0.00032876,14]
[339036144,1727159446255,-500.0,0.00032876,14]
[339036145,1727159446264,-500.0,0.00032876,14]
[339036146,1727159446275,-500.0,0.00032876,14]
[339036147,1727159446284,-500.0,0.00032876,14]
[339036148,1727159446293,-501.22873441,0.00032876,14]
[339036149,1727159446302,-500.0,0.00032876,14]
[339036150,1727159446311,-500.0,0.00032876,14]
[339036151,1727159446320,-500.0,0.00032876,14]
[339036152,1727159446329,-502.59626571,0.00032876,14]
[339036153,1727159446339,-525.01346347,0.00032876,14]
[339036154,1727159446348,-523.99632765,0.00032876,14]
[339036155,1727159446358,-500.0,0.00032876,14]
[339036156,1727159446367,-500.0,0.00032876,14]
[339036157,1727159446376,-500.0,0.00032876,14]
[339036158,1727159446385,-500.0,0.00032876,14]
[339036159,1727159446395,-501.12229003,0.00032876,14]
[339036160,1727159446404,-500.0,0.00032876,14]
[339036161,1727159446412,-504.87720332,0.00032876,14]
[339036162,1727159446421,-501.03066915,0.00032876,14]
[339036163,1727159446430,-500.0,0.00032876,14]
[339036164,1727159446440,-500.0,0.00032876,14]
[339036165,1727159446449,-500.0,0.00032876,14]
[339036166,1727159446459,-507.03931128,0.00032876,14]
[339036167,1727159446469,-505.77793833,0.00032876,14]
[339036168,1727159446479,-500.0,0.00032876,14]
[339036169,1727159446488,-500.0,0.00032876,14]
[339036170,1727159446498,-500.0,0.00032876,14]
[339036171,1727159446507,-504.80993815,0.00032876,14]
[339036172,1727159446516,-500.0,0.00032876,14]
[339036173,1727159446525,-500.0,0.00032876,14]
[339036174,1727159446535,-501.2407362,0.00032876,14]
[339036175,1727159446544,-632.96679348,0.00032876,14]
[339036176,1727159446553,-501.81159814,0.00032876,14]
[339036177,1727159446563,-500.0,0.00032876,14]
[339036178,1727159446572,-505.17343172,0.00032876,14]
[339036179,1727159446581,-500.0,0.00032876,14]
[339036180,1727159446591,-500.0,0.00032876,14]
[339036181,1727159446599,-501.84434748,0.00032876,14]
[339036182,1727159446609,-500.80185463,0.00032876,14]
[339036183,1727159446618,-500.0,0.00032876,14]
[339036184,1727159446627,-507.18999395,0.00032876,14]
[339036185,1727159446637,-500.0,0.00032876,14]
[339036186,1727159446646,-298.72613266,0.00032876,14]
[339036187,1727159446655,-501.81214343,0.00032876,14]
[339036188,1727159446667,-501.13848968,0.00032876,14]
[339036189,1727159446676,-509.32071778,0.00032876,14]
[339036190,1727159446686,-505.5783552,0.00032876,14]
[339036191,1727159446695,-500.0,0.00032876,14]
[339036192,1727159446705,-510.28707405,0.00032876,14]
[339036193,1727159446715,-496.06871647,0.00032876,14]
[339036194,1727159446725,-505.2059108,0.00032876,14]
[339036195,1727159446734,-500.0,0.00032876,14]
[339036196,1727159446744,-501.74990406,0.00032876,14]
[339036197,1727159446755,-500.0,0.00032876,14]
[339036198,1727159446764,-500.0,0.00032876,14]
[339036199,1727159446773,-500.0,0.00032876,14]
[339036200,1727159446782,-497.33666476,0.00032876,14]
[339036201,1727159446791,-500.0,0.00032876,14]
[339036202,1727159446801,-500.0,0.00032876,14]
[339036203,1727159446810,-201.38099567,0.00032876,14]
[339036204,1727159446819,-501.88044485,0.00032876,14]
[339036205,1727159446829,-500.0,0.00032876,14]
[339036206,1727159446838,-500.0,0.00032876,14]
[339036207,1727159446847,-500.0,0.00032876,14]
[339036208,1727159446857,-504.64470602,0.00032876,14]
[339036209,1727159446866,-500.0,0.00032876,14]
[339036210,1727159446875,-500.0,0.00032876,14]
[339036211,1727159446885,-500.0,0.00032876,14]
[339036212,1727159446895,-500.0,0.00032876,14]
[339036213,1727159446904,-500.0,0.00032876,14]
[339036214,1727159446914,-500.0,0.00032876,14]
[339036215,1727159446923,-500.0,0.00032876,2]
[339036216,1727159446933,-500.0,0.00032876,14]
[339036217,1727159446942,-500.0,0.00032876,14]
[339036218,1727159446952,-504.4379537,0.00032876,14]
[339036219,1727159446961,-500.0,0.00032876,14]
[339036220,1727159446970,-500.0,0.00032876,14]
[339036221,1727159446979,-967.92,0.00032876,14]
[339036222,1727159446989,-500.0,0.00032876,14]
[339036223,1727159446998,-600.0,0.00032876,2]
[339036224,1727159447007,-500.0,0.00032876,14]
[339036225,1727159447017,-500.0,0.00032876,14]
[339036226,1727159447026,-500.0,0.00032876,14]
[339036227,1727159447035,-500.0,0.00032876,14]
[339036228,1727159447045,-500.0,0.00032876,14]
[339036229,1727159447055,-500.0,0.00032876,14]
[339036230,1727159447064,-151.0,0.00032876,7]
[339036231,1727159447073,-151.0,0.00032876,7]
[339036232,1727159447082,-209.131205,0.00032876,7]
[339036233,1727159447091,-500.0,0.00032876,14]
[339036234,1727159447100,-500.0,0.00032876,14]
[339036235,1727159447109,-500.0,0.00032876,14]
[339036236,1727159447118,-500.0,0.00032876,14]
[339036237,1727159447127,-500.0,0.00032876,14]
[339036238,1727159447137,-500.0,0.00032876,14]
[339036239,1727159447146,-328.426995,0.00032876,7]
[339036240,1727159447155,-328.426995,0.00032876,7]
[339036241,1727159447164,-328.426995,0.00032876,7]
[339036242,1727159447173,-500.0,0.00032876,14]
[339036243,1727159447183,-328.426995,0.00032876,7]
[339036244,1727159447192,-328.426995,0.00032876,7]
[339036245,1727159447201,-328.426995,0.00032876,7]
[339036246,1727159447210,-500.0,0.00032876,120]
[339036247,1727159447220,-500.0,0.00032876,14]
[339036248,1727159447230,-328.426995,0.00032876,7]
[339036249,1727159447239,-328.426995,0.00032876,7]
[339036250,1727159447249,-328.426995,0.00032876,7]
[339036251,1727159447258,-328.426995,0.00032876,7]
[339036252,1727159447267,-328.426995,0.00032876,7]
[339036253,1727159447277,-328.426995,0.00032876,7]
[339036254,1727159447286,-151.0,0.00032876,7]
[339036255,1727159447295,-500.0,0.00032876,14]
[339036256,1727159447305,-500.0,0.00032876,14]
[339036257,1727159447314,-500.0,0.00032876,14]
[339036258,1727159447323,-500.0,0.00032876,14]
[339036259,1727159447332,-500.0,0.00032876,14]
[339036260,1727159447341,-500.0,0.00032876,14]
[339036261,1727159447351,-500.0,0.00032876,14]
[339036262,1727159447361,-500.0,0.00032876,14]
[339036263,1727159447370,-500.0,0.00032876,14]
[339036264,1727159447380,-500.0,0.00032876,14]
[339036265,1727159447389,-500.0,0.00032876,14]
[339036266,1727159447399,-500.0,0.00032876,14]
[339036267,1727159447409,-500.0,0.00032876,14]
[339036268,1727159447418,-500.0,0.00032876,14]
[339036269,1727159447428,-500.0,0.00032876,14]
[339036270,1727159447440,-500.0,0.00032876,14]
[339036271,1727159447450,-502.19665635,0.00032876,14]
[339036272,1727159447459,-500.0,0.00032876,2]
[339036273,1727159447468,-500.0,0.00032876,14]
[339036274,1727159447478,-504.58167854,0.00032876,14]
[339036275,1727159447487,-500.0,0.00032876,14]
[339036276,1727159447497,-500.0,0.00032876,14]
[339036277,1727159447507,-349.85066899,0.00032876,14]
[339036278,1727159447517,-500.0,0.00032876,14]
[339036279,1727159447527,-502.35926488,0.00032876,14]
[339036280,1727159447536,-500.0,0.00032876,14]
[339036281,1727159447545,-500.0,0.00032876,14]
[339036282,1727159447555,-654.65,0.00032876,14]
[339036283,1727159447564,-500.0,0.00032876,14]
[339036284,1727159447573,-500.0,0.00032876,14]
[339036285,1727159447583,-500.0,0.00032876,14]
[339036286,1727159447592,-500.0,0.00032876,14]
[339036287,1727159447601,-500.0,0.00032876,14]
[339036288,1727159447610,-507.07424743,0.00032876,14]
[339036289,1727159447620,-500.0,0.00032876,14]
[339036290,1727159447630,-500.0,0.00032876,14]
[339036291,1727159447639,-500.0,0.00032876,14]
[339036292,1727159447649,-501.77486046,0.00032876,14]
[339036293,1727159447659,-500.0,0.00032876,14]
[339036294,1727159447671,-500.0,0.00032876,14]
[339036295,1727159447680,-500.0,0.00032876,14]
[339036296,1727159447690,-500.0,0.00032876,14]
[339036297,1727159447699,-500.0,0.00032876,14]
[339036298,1727159447710,-500.0,0.00032876,14]
[339036299,1727159447720,-500.0,0.00032876,14]
[339036300,1727159447729,-500.0,0.00032876,14]
[339036301,1727159447739,-500.0,0.00032876,14]
[339036302,1727159447748,-504.05409807,0.00032876,14]
[339036303,1727159447757,-500.0,0.00032876,14]
[339036304,1727159447849,-502.39915859,0.00032876,14]
[339036305,1727159447859,-500.0,0.00032876,14]
[339036306,1727159447869,-500.0,0.00032876,14]
[339036307,1727159447878,-500.0,0.00032876,14]
[339036308,1727159447888,-503.81695172,0.00032876,14]
[339036309,1727159447897,-500.0,0.00032876,14]
[339036310,1727159447907,-500.0,0.00032876,14]
[339036311,1727159447916,-500.0,0.00032876,14]
[339036312,1727159447925,-500.0,0.00032876,14]
[339036313,1727159447935,-1000.0,0.00032876,120]
[339036314,1727159447945,-502.47784804,0.00032876,14]
[339036315,1727159447954,-500.0,0.00032876,14]
[339036316,1727159447964,-500.0,0.00032876,14]
[339036317,1727159447973,-500.0,0.00032876,14]
[339036318,1727159447983,-500.0,0.00032876,14]
[339036319,1727159447993,-500.0,0.00032876,14]
[339036320,1727159448002,-200.0,0.00032876,14]
[339036321,1727159448011,-500.86534767,0.00032876,14]
[339036322,1727159448021,-504.0429985,0.00032876,14]
[339036323,1727159448031,-501.77423279,0.00032876,14]
[339036324,1727159448040,-500.0,0.00032876,14]
[339036325,1727159448049,-500.0,0.00032876,14]
[339036326,1727159448059,-500.0,0.00032876,14]
[339036327,1727159448069,-500.0,0.00032876,14]
[339036328,1727159448079,-514.18248091,0.00032876,14]
[339036329,1727159448088,-500.0,0.00032876,2]
[339036330,1727159448098,-500.0,0.00032876,14]
[339036331,1727159448108,-500.0,0.00032876,2]
[339036332,1727159448117,-214.22654932,0.00032876,2]
[339036333,1727159448126,-151.0,0.00032876,7]
[339036334,1727159448136,-500.0,0.00032876,14]
[339036335,1727159448146,-559.032966,0.00032876,14]
[339036336,1727159448155,-503.37011108,0.00032876,14]
[339036337,1727159448164,-500.0,0.00032876,14]
[339036338,1727159448174,-501.96269827,0.00032876,14]
[339036339,1727159448183,-151.0,0.00032876,7]
[339036340,1727159448193,-500.0,0.00032876,14]
[339036341,1727159448202,-151.0,0.00032876,7]
[339036342,1727159448211,-151.0,0.00032876,7]
[339036343,1727159448220,-151.0,0.00032876,7]
[339036344,1727159448230,-501.88262316,0.00032876,14]
[339036345,1727159448240,-151.0,0.00032876,7]
[339036346,1727159448249,-505.13200443,0.00032876,14]
[339036347,1727159448259,-152.979582,0.00032876,7]
[339036348,1727159448269,-500.0,0.00032876,14]
[339036349,1727159448278,-500.0,0.00032876,5]
[339036350,1727159448288,-504.90713167,0.00032876,14]
[339036351,1727159448297,-500.0,0.00032876,14]
[339036352,1727159448306,-500.0,0.00032876,14]
[339036353,1727159448316,-500.0,0.00032876,14]
[339036354,1727159448325,-631.37854023,0.00032876,14]
[339036355,1727159448335,-500.0,0.00032876,14]
[339036356,1727159448344,-500.0,0.00032876,14]
[339036357,1727159448353,-702.03,0.00032876,14]
[339036358,1727159448363,-503.21637588,0.00032876,14]
[339036359,1727159448372,-504.1285244,0.00032876,14]
[339036360,1727159448382,-501.19556565,0.00032876,14]
[339036361,1727159448391,-500.0,0.00032876,14]
[339036362,1727159448400,-500.0,0.00032876,14]
[339036363,1727159448409,-509.32209887,0.00032876,14]